Cogmind - Beta 16 @@@ ROGUE MODE // 2026.02.06 @ 16:03:15 Player: Moddy Result: Destroyed by S-10 Pest with Light Assault Rifle Performance ------------- Evolutions (0) 0 Regions Visited (2) 400 Robots Destroyed (26) 130 Value Destroyed (625) 625 Prototype IDs (0) 0 Alien Tech Used (0) 0 Bonus (0) 0 TOTAL SCORE: 1155 Bonus ------- None Cogmind --------- Core Integrity 0/250 Matter 278/300 Energy 200/200 System Corruption 0% Temperature Cool (0) Movement Core (500) Ox9 Location -10/Subcaves Parts ------- > --- POWER (1) -------- Subdweller Power Source > --- PROPULSION (2) --- (None) > --- UTILITY (2) ------ Large Storage Unit Targeting Computer > --- WEAPON (2) ------- Assault Rifle Battle Cannon > --- INVENTORY (15) --- Ion Engine Light Ion Engine Light Treads Light Treads Aluminum Leg Wheel Compact Wheel Improved Heat Sink Medium Storage Unit Large Matter Pod (141) Field Recycling Unit (0) Subdweller Laser Subdweller Machine Gun Scrap Shield Fragment (47) Scrap Shield Fragment (39) Peak State ------------ > --- POWER ------------ Ion Engine > --- PROPULSION ------- Aluminum Leg Aluminum Leg > --- UTILITY ---------- Small Storage Unit Medium Armor Plating > --- WEAPON ----------- Heavy Assault Rifle Heavy Assault Rifle > --- INVENTORY -------- Light Ion Engine Light Treads Light Treads Wheel Compact Wheel Improved Heat Sink Field Recycling Unit Assault Rifle [Rating: 11] Favorites ----------- Power Ion Engine Engine Ion Engine Propulsion Aluminum Leg Leg Aluminum Leg Utility Large Storage Unit Storage Large Storage Unit Processor Targeting Computer Protection Medium Armor Plating Weapon Heavy Assault Rifle Energy Gun EM Pulse Gun Energy Cannon Subdweller Beam Cannon Ballistic Gun Heavy Assault Rifle Ballistic Cannon Battle Cannon Launcher Grenade Launcher Build | -11 -10 -10 ------- Run | Yrd Mat Sub Slots Evolved . | . . . Power . | . . . Propulsion . | . . . Utility . | . . . Weapon . | . . . Parts Attached 13 | . 7 6 Power 2 | . 1 1 Engine 2 | . 1 1 Core . | . . . Reactor . | . . . Propulsion 1 | . 1 . Treads . | . . . Leg 1 | . 1 . Wheel . | . . . Hover . | . . . Flight . | . . . Utility 4 | . 3 1 Device . | . . . Storage 2 | . 2 . Processor 1 | . . 1 Hackware . | . . . Protection 1 | . 1 . Artifact . | . . . Weapon 6 | . 2 4 Energy Gun . | . . . Energy Cannon 1 | . . 1 Ballistic Gun 3 | . 2 1 Ballistic Cannon 1 | . . 1 Launcher 1 | . . 1 Special Weapon . | . . . Impact Weapon . | . . . Slashing Weapon . | . . . Piercing Weapon . | . . . Special Melee Weapon . | . . . Unidentified Prototypes . | . . . Parts Lost 7 | . . 7 Power 1 | . . 1 Propulsion 2 | . . 2 Utility 1 | . . 1 Weapon 3 | . . 3 Highest Loss Streak 3 | . . 3 To Critical Strikes . | . . . Average Backups 12 | . 12 11 Power 1 | . 1 2 Propulsion 4 | . 4 5 Utility 4 | . 4 4 Weapon 1 | . 1 . Tool/Special . | . . . Unused Backups 11 | . 3 8 Power 1 | . . 1 Propulsion 1 | . . 1 Utility 5 | . 1 4 Weapon 4 | . 2 2 Tool/Special . | . . . Average Slot Usage (%) 98 | . 99 97 Engine 13 | . 14 13 Leg 28 | . 28 28 Storage 14 | . 14 14 Processor 5 | . . 12 Protection 8 | . 13 . Energy Cannon 2 | . . 6 Ballistic Gun 22 | . 27 14 Launcher 1 | . . 3 Peak Build Rating 11 | . 11 11 Average Rating 9 | . 10 8 On Entrance 7 | 6 6 11 Avg Prop Armor Cover (%) . | . . . Naked Turns . | . . . Heaviest Build 38 | 13 38 38 Greatest Support 20 | 20 20 20 Greatest Overweight (x) 1 | . 1 1 Average Overweight (x) . | . . 1 Largest Inventory Capacity 15 | . 15 15 Average Capacity 14 | . 14 15 Most Carried 15 | . 15 15 Average Carried 12 | . 12 12 Final Capacity 15 | 8 15 15 Final Carried 15 | 6 15 15 Class Distribution -------------------- 100% | Mutant Dominant Class ---------------- Mutant | -10/Materials Mutant | -10/Subcaves Resources | -11 -10 -10 ----------- Run | Yrd Mat Sub Matter Collected 936 | 200 392 344 Remotely . | . . . Salvage Created 754 | . 484 270 Parts 45 | . 29 16 Haulers Intercepted 1 | . 1 . Recyclers Shooed . | . . . Parts Field Recycled . | . . . Retrieved Matter . | . . . Parts Self-Destructed 7 | . . 7 Prevented . | . . . Parts Restored . | . . . Kills | -11 -10 -10 ------- Run | Yrd Mat Sub Combat Hostiles Destroyed 21 | . 11 10 Guns 15 | . 11 4 Cannons 6 | . . 6 Classes Destroyed 7 | . 5 2 Builder 1 | . 1 . Hauler 1 | . 1 . Watcher 3 | . 3 . Swarmer 9 | . 5 4 Grunt 6 | . 6 . Artisan 1 | . . 1 Subdweller 6 | . . 6 Best Kill Streak 5 | . 5 4 Combat Bots Only 5 | . 5 4 Max Kills in Single Turn 1 | . 1 1 Gunslinging . | . . . Exploded . | . . . Melee . | . . . Uniques/NPCs Destroyed . | . . . Combat | -11 -10 -10 -------- Run | Yrd Mat Sub Hostile Shots Fired 114 | . 45 69 Missed 35 | . 14 21 Hits 79 | . 31 48 Projectile 79 | . 31 48 Critical Strikes 1 | . . 1 Damage Taken 1121 | . 301 820 Core 250 | . 48 202 Absorbed by Shields . | . . . Regen/Repaired (Parts) 50 | . 50 . Core Remaining (%) 100 | 100 . . Volleys Fired 78 | . 42 36 Largest 2 | . 2 2 Hottest 100 | . 46 100 Shots Fired 156 | . 84 72 Gun 129 | . 84 45 Cannon 24 | . . 24 Launcher 3 | . . 3 Special . | . . . Kinetic 146 | . 84 62 Thermal 7 | . . 7 Explosive 3 | . . 3 Electromagnetic . | . . . Robot Hit Streak 9 | . 9 8 Robot Miss Streak 7 | . 7 6 Penetration Max . | . . . Secondary Targets 2 | . 1 1 Max Gunslinging Chain 1 | . 1 1 Shots Hit Robots 84 | . 46 38 Core Hits 36 | . 19 17 Critical Kills . | . . . Critical Parts Destroyed 2 | . 2 . Critical Strikes 3 | . 2 1 Destroy 2 | . 2 . Blast 1 | . . 1 Melee Attacks . | . . . Impact . | . . . Slashing . | . . . Piercing . | . . . Sneak Attacks . | . . . Combat Hostiles . | . . . Follow-up Attacks . | . . . Damage Inflicted 1514 | . 737 777 Guns 1081 | . 737 344 Cannons 323 | . . 323 Explosions 110 | . . 110 Melee . | . . . Ramming . | . . . Kinetic 1348 | . 737 611 Thermal 56 | . . 56 Explosive 110 | . . 110 Electromagnetic . | . . . Impact . | . . . Slashing . | . . . Piercing . | . . . Highest Corruption . | . . . Average Corruption . | . . . Corruption Purged . | . . . Corruption Blocked . | . . . Overload Shots . | . . . Overflow Damage 5 | . . 5 Projectiles 5 | . . 5 Explosions . | . . . Melee . | . . . Knockbacks 3 | . . 3 Impact . | . . . Kinetic 3 | . . 3 Secondary . | . . . Self-Inflicted Damage 23 | . . 23 Shots 1 | . . 1 Rammed . | . . . Targets Rammed . | . . . Kicked . | . . . Crushed . | . . . Highest Temperature 25 | . 25 . Average Temperature 9 | . 9 . Received Heat Transfer 222 | . 75 147 Siege Activations . | . . . Martial Activations . | . . . Shielding Activations . | . . . Robots Disrupted . | . . . Combat Hostiles . | . . . Robots Corrupted . | . . . Combat Hostiles . | . . . Parts Fried . | . . . Impact Corruptions . | . . . Robots Melted . | . . . Combat Hostiles . | . . . Parts Melted . | . . . Heat Transferred 74 | . . 74 Parts Sabotaged . | . . . Parts Stolen . | . . . Parts Stripped . | . . . Power Chain Reactions . | . . . Alert | -11 -10 -10 ------- Run | Yrd Mat Sub Maximum Alert Level . | . . . Low Security (%) 100 | . 100 . Level 1 . | . . . Level 2 . | . . . Level 3 . | . . . Level 4 . | . . . Level 5 . | . . . High Security . | . . . Max Security . | . . . Peak Influence 110 | . 110 . Initial . | . . . Average 26 | . 26 . Influence Increases 432 | . 312 120 Destroy 0b10 Robot/C 300 | . 220 80 Destroy 0b10 Robot/NC 25 | . 25 . Destroy Leader 58 | . 48 10 Successful Hack 3 | . 3 . Disable Machine 15 | . 15 . Destroy Structure 1 | . 1 . Lose Combat Pursuer 30 | . . 30 Influence Decreases 386 | . 312 74 Time Decay 336 | . 312 24 Lost Part 50 | . . 50 Squads Dispatched . | . . . Investigation . | . . . Extermination . | . . . Reinforcement . | . . . Assault . | . . . Garrison . | . . . Intercept . | . . . Searches Triggered . | . . . Construction Impeded . | . . . Haulers Reinforced . | . . . Active Scanning Responses . | . . . Cargo Convoy Interrupts . | . . . Stealth | -11 -10 -10 --------- Run | Yrd Mat Sub Distress Signals . | . . . Communications Jammed . | . . . Distress Signals . | . . . Times Spotted 33 | . 18 15 Peak Tracking Total 6 | . 5 6 Tactical Retreats 1 | . . 1 Traps | -11 -10 -10 ------- Run | Yrd Mat Sub Traps Triggered 1 | . . 1 Indirectly . | . . . Trap Hack Attempts . | . . . Triggered . | . . . Disarmed . | . . . Reprogrammed . | . . . Reused . | . . . Traps Extracted . | . . . Installed . | . . . Triggered . | . . . Machines | -11 -10 -10 ---------- Run | Yrd Mat Sub Machines Disabled 1 | . 1 . Max in Single Turn 1 | . 1 . Machines Repaired . | . . . Machines Dismantled . | . . . Machines Sabotaged . | . . . Overloaded Fab Kills . | . . . Hacking | -11 -10 -10 --------- Run | Yrd Mat Sub Machines Accessed 7 | . 7 . Terminals 4 | . 4 . Fabricators . | . . . Repair Stations 1 | . 1 . Recycling Units 2 | . 2 . Scanalyzers . | . . . Garrison Access . | . . . Total Hacks 21 | . 21 . Successful 12 | . 12 . Failed 9 | . 9 . Catastrophic . | . . . Database Lockouts . | . . . Manual . | . . . Terminals 15 | . 15 . Fabricators . | . . . Repair Stations 2 | . 2 . Recycling Units 4 | . 4 . Scanalyzers . | . . . Garrison Access . | . . . Terminal Hacks 8 | . 8 . Record 4 | . 4 . Recycling Unit Index 1 | . 1 . Locate Traps 2 | . 2 . Patrol Status 1 | . 1 . Fabricator Hacks . | . . . Repair Station Hacks 2 | . 2 . Scan Component 1 | . 1 . Repair 1 | . 1 . Recycling Unit Hacks 2 | . 2 . Retrieve Components 2 | . 2 . Scanalyzer . | . . . Garrison Access Hacks . | . . . Unauthorized Hacks . | . . . Terminals . | . . . Fabricators . | . . . Repair Stations . | . . . Recycling Units . | . . . Scanalyzers . | . . . Garrison Access . | . . . Data Cores Recovered . | . . . Used . | . . . Hacking Detections 2 | . 2 . Full Trace Events . | . . . Feedback Events . | . . . Feedback Blocked . | . . . Robot Schematics Acquired . | . . . Robots Built . | . . . Authchips . | . . . Time . | . . . Total Robot Build Rating . | . . . Part Schematics Acquired . | . . . Parts Built . | . . . Authchips . | . . . Time . | . . . Total Part Build Rating . | . . . Part Studies Acquired . | . . . Parts Repaired 1 | . 1 . Time 32 | . 32 . Parts Recycled . | . . . Recycled Matter . | . . . Retrieved Matter . | . . . Retrieved Components 11 | . 11 . Parts Scanalyzed . | . . . Part Schematics Acquired . | . . . Parts Damaged . | . . . Bothacking | -11 -10 -10 ------------ Run | Yrd Mat Sub Used RIF Installer . | . . . Robots Hacked . | . . . Non-combat . | . . . Combat . | . . . Robot Hacks Applied . | . . . Relay Couplers Released . | . . . Fabnet Peak Effective % . | . . . Robots Rewired . | . . . Allies Hacked . | . . . Hacks Repelled . | . . . Allies | -11 -10 -10 -------- Run | Yrd Mat Sub Total Allies . | . . . Largest Group . | . . . Highest-Rated Group . | . . . Highest-Rated Ally . | . . . Total Orders . | . . . Ally Attacks . | . . . Total Damage . | . . . Kills . | . . . Allies Corrupted . | . . . Allies Melted . | . . . Intel | -11 -10 -10 ------- Run | Yrd Mat Sub Active Infowar (turns) . | . . . Robot Analysis Total . | . . . Derelict Logs Recovered 1 | . . 1 Drone Launches . | . . . Drone Recoveries . | . . . Exploration | -11 -10 -10 ------------- Run | Yrd Mat Sub Turns Passed 2826 | . 1625 1201 Spaces Moved 1266 | 1 697 568 Core . | . . . Treads . | . . . Legs 1266 | 1 697 568 Wheels . | . . . Hover . | . . . Flight . | . . . Fastest Speed 120 | 120 120 190 Average Speed 189 | 120 188 190 Slowest Speed 190 | 120 190 190 Overloaded Moves . | . . . Propulsion Burnouts . | . . . Robots Hopped . | . . . Potential Cave-ins . | . . . Cave-ins Triggered . | . . . Exploration Rate (%) 43 | 2 94 34 Regions Visited 2 Branch Regions 1 Pre-discovered Areas . | . . . Known Exits Taken . | . . . Unknown Exits Taken 2 | 1 1 . Scrap Searched 1 | . . 1 Spaces Dug . | . . . Terrain Destroyed 14 | . . 14 Melee . | . . . Projectile . | . . . AOE 14 | . . 14 Terrain Rammed . | . . . Walls Destroyed . | . . . Machines Disabled . | . . . Actions | -11 -10 -10 --------- Run | Yrd Mat Sub Total 1538 | . 922 616 Wait 167 | . 167 . Move 1264 | . 696 568 Hop . | . . . Pick Up 11 | . 6 5 Fast Attach 3 | . 2 1 Attach 4 | . . 4 Detach . | . . . Swap 8 | . 7 1 Drop 3 | . 2 1 Fire 78 | . 42 36 Melee . | . . . Ram . | . . . Kick . | . . . Crush . | . . . Escape Stasis . | . . . Rewire . | . . . Trap . | . . . Miscellaneous . | . . . Route ------- -11/Scrapyard -10/Materials (discovered 6 exits: [*Mat x3] / [*Min x2] / [*Sub]) -10/Subcaves (discovered 2 exits: [*Mat] / [*Rec]) History --------- Turn | Location | Event 1 | -11/Scrapyard | Discovered new exit (range 0) 1 | -11/Scrapyard | Entered Materials 303 | -10/Materials | Build established: Mutant 317 | -10/Materials | Repaired Med. Armor Plating 408 | -10/Materials | Discovered new exit (range 8) 501 | -10/Materials | Discovered new exit (range 8) 706 | -10/Materials | Discovered new exit (range 13) 944 | -10/Materials | Discovered new exit (range 10) 1103 | -10/Materials | Discovered new exit (range 16) 1377 | -10/Materials | Discovered new exit (range 9) 1626 | -10/Materials | Entered Subcaves 1627 | -10/Subcaves | Approached by a straggling Scientist 1660 | -10/Subcaves | Core integrity fell below 50% 1703 | -10/Subcaves | Lost 3 parts (1u2w) 2448 | -10/Subcaves | A swath of the cavern ceiling suddenly collapsed 2584 | -10/Subcaves | Ambushed by angry Subdweller bent on revenge 2728 | -10/Subcaves | Learned Materials interactive machine intel 2735 | -10/Subcaves | Discovered new exit (range 6) 2812 | -10/Subcaves | Shifting Twisted Machinery released Battle Cannon 2813 | -10/Subcaves | Discovered new exit (range 11) 2824 | -10/Subcaves | Core integrity fell below 20% 2827 | -10/Subcaves | Destroyed by S-10 Pest with Light Assault Rifle Last Messages --------------- 02743_ BX-7XM(R) destroyed. 02752_ Acquired Sub. Power Source. 02757_ Acquired Sub. Machine Gun. 02758_ Acquired 6 matter. 02760_ Acquired 46 matter. 02762_ Acquired 12 matter. 02764_ Subatomizers dissect the Sub. Monowheel. 02787_ Acquired 3 matter. 02789_ Acquired 45 matter. 02791_ Acquired 1 matter. Battle Cannon falls loose from the Twisted Machinery. 02813_ EXIT=FOUND 02817_ S-10 Pest knocked back. 02820_ Aluminum Leg destroyed. 02820_ S-10 Pest Lgt. Ion Engine blasted off. 02820_ S-10 Pest destroyed. 02821_ Aluminum Leg destroyed. 02823_ Destroyed Flight Unit. 02823_ S-10 Pest knocked back. 02826_ S-10 Pest destroyed. Map ----- +----------------------------------------------------+ | # #?##" ## #?## ## # | | ####???##" # # #??# ### | | ????????#### ### #??####?# | | ??????????## # #???????# ## | | ??????????# ### #??????# ##?? | | ??????????## #?## #????## #???? | | ???????????# ##??# ##?????#### ##????? # | | ????????####"#######???######??????????##???????# | | ????????# # #?????????????????????????????????## | | ????????# ###?????????????????????????????????# | | ????##### ##???????????????????????????????????# | | ??### ##????????????????????????????????????# | | ?## #####?????????????????????????????????????## | | ## ###??????????????????????????????????????????## | | # ##???????????????????????????????????????????# | | ##????????????????????????????????????????????# | | #?????????????????????????????????????????????# # | | ##?????????????????????????????????????????????## | | ?????????#????####??????????????????????????????# | | ????????? ##??#" " ?????????????????????????????## | | ##??????? ####" ?????????????????????????????? | | ###???### ##" #########?#####?????????????? | | # ##### ##"" %&s"" ""##" #????????????? | | ## ##< ]%=s%% ] ""???????????? | | #### # #?#"" %* """ ????????????? | | #?#= ]### #?#" ####@ " ####????????????????? | | ??## ## #?#?????????# "#???????????????????? | | ??## "## #???????????## ###???????????????????? | | ??# ## ##??????????# #?????????????????????? | | ?## ## < ############ ##????????????????????? | | ?# ! # # ## """##???????????????????? | | ?# && ! " " "#???????????????????? | | ?##### """##" " " ##???????????????????? | | ?????######## #######"#######????????????????????? | | ????????????###?????###??????????????????????????? | | ?????????????????????????????????????????????????? | | ?????????????????????????????????????????????????? | | ?????????????????????????????????????????????????? | | ?????????????????????????????????????????????????? | | ?????????????????????????????????????????????????? | | ?????????????????????????????????????????????????? | | ?????????????????????????????????????????????????? | | ?????????????????????????????????????????????????? | | ?????????????????????????????????????????????????? | | ?????????????????????????????????????????????????? | | ?????????????????????????????????????????????????? | | ?????????????????????????????????????????????????? | | ?????????????????????????????????????????????????? | | ?????????????????????????????????????????????????? | | | +----------------------------------------------------+ Best States ------------- Heat Dissipation 25 Energy Generation 15 Energy Capacity 250 Matter Stores 300 Matter Capacity 300 Sight Range 16 Terrain Scan Density 10 Armor Coverage 225 Evasion (%) 45 Targeting Accuracy 5 Item Schematics ----------------- None Robot Schematics ------------------ None Fabricated ------------ Nothing Repaired ---------- Med. Armor Plating | 58% | -10/Materials Studied --------- None Alien Tech Used ----------------- None Achievements -------------- Art Critic Challenges ------------ None Game ------ Seed VisualPlatingSpear Manual? 0 Play Time 00:15:38 Cumulative 33.7 hours Start 2026.02.06 @ 15:45:43 End 2026.02.06 @ 16:03:15 Sessions 1 Manual Loads 0 Difficulty Rogue Special Mode None Game No. 57 Rogue 57 Adventurer 0 Explorer 0 Win Type - Total 0 Types 0/0/0/0/0/0/0/0/0/0 Lore% 16 Gallery% 34 Achievement% 19 Wizard Run 0 Options --------- Layout 1 ASCII 0 Keyboard 0 Movement Mouse Keybinds 0 Fullscreen 2 Font 32/SmallcapsGlow Map View 77x35 Zoom Use 0% Tactical HUD 1 Map Filters NONE Filters NONE Steam 1 RUN: 9c156d5c-0ae3-4d6b-8573-66246f2cee5a